bitfinex-derivatives/quotes_SOLF0:USTF0_20260306
["timestamp","ask_amount","ask_price","bid_price","bid_amount"]
[1772790787138,3.77346383,87.459,87.41,3.04249103]
[1772790787337,10.29,87.456,87.411,10.295]
[1772790787644,3.77346383,87.455,87.411,10.295]
[1772790787846,3.77346383,87.455,87.412,1.54635584]
[1772790788547,3.77346383,87.469,87.43,3.04249103]
[1772790788747,3.77346383,87.469,87.44,3.04249103]
[1772790788947,3.77346383,87.483,87.44,3.04249103]
[1772790790848,10.287,87.482,87.44,3.04249103]
[1772790791046,3.77346383,87.479,87.39,1.53176023]
[1772790791247,3.77346383,87.479,87.389,20.596]
[1772790791248,3.77346383,87.479,87.42,3.04249103]
[1772790791446,3.77346383,87.479,87.42,4.57425126]
[1772790791647,3.77346383,87.478,87.43,3.04249103]
[1772790792042,3.77346383,87.478,87.421,1.53176023]
[1772790792242,3.77346383,87.469,87.421,1.53176023]
[1772790793348,3.77346383,87.469,87.43,3.04249103]
[1772790794550,3.77346383,87.469,87.411,1.53746949]
[1772790794749,3.77346383,87.459,87.411,1.53746949]
[1772790795750,14.06346383,87.459,87.412,10.295]
[1772790797455,10.29,87.456,87.412,10.295]
[1772790797954,3.77346383,87.458,87.418,10.294]
[1772790798350,3.77346383,87.458,87.413,10.295]
[1772790798855,3.77346383,87.458,87.412,1.56561076]
[1772790799154,14.06146383,87.471,87.421,1.56561076]
[1772790799456,3.04249103,87.48,87.421,1.56561076]
[1772790799457,10.288,87.469,87.421,11.85961076]
[1772790799655,14.06146383,87.469,87.421,11.85961076]
[1772790799956,3.77346383,87.468,87.421,11.85961076]
[1772790800496,3.77346383,87.468,87.43,10.293]
[1772790800657,3.77346383,87.468,87.43,13.33549103]
[1772790801857,3.77346383,87.468,87.43,3.04249103]
[1772790802055,3.77346383,87.468,87.423,10.294]
[1772790802859,3.77346383,87.466,87.423,10.294]
[1772790804059,3.77346383,87.466,87.429,10.293]
[1772790804959,10.288,87.471,87.43,4.60677569]
[1772790805656,14.06046383,87.478,87.433,10.293]
[1772790805859,3.77346383,87.477,87.433,10.293]
[1772790806553,3.77346383,87.474,87.436,11.85629253]
[1772790806758,3.77346383,87.474,87.44,3.04249103]
[1772790807059,3.77346383,87.489,87.44,4.60678356]
[1772790807761,3.77346383,87.488,87.442,10.291]
[1772790810768,14.05946383,87.485,87.442,10.291]
[1772790811065,3.77346383,87.484,87.442,10.291]
[1772790812064,3.96112589,87.499,87.449,1.59379263]
[1772790812269,3.96112589,87.512,87.461,1.59379263]
[1772790812567,3.96112589,87.512,87.47,3.04249103]
[1772790812868,3.96112589,87.529,87.481,1.59379263]
[1772790814864,3.96112589,87.529,87.48,3.04249103]
[1772790815065,3.96112589,87.519,87.47,3.04249103]
[1772790815669,3.96112589,87.519,87.471,1.45491777]
[1772790817169,3.96112589,87.519,87.48,3.04249103]
[1772790817573,3.96112589,87.533,87.49,3.04249103]
[1772790818268,3.96112589,87.533,87.48,3.04249103]
[1772790818467,3.96112589,87.519,87.47,3.04249103]
[1772790818968,3.96112589,87.516,87.47,3.04249103]
[1772790819173,3.96112589,87.516,87.471,1.29916189]
[1772790819875,3.96112589,87.516,87.474,1.27035687]
[1772790820071,3.96112589,87.516,87.48,3.04249103]
[1772790822372,3.96112589,87.516,87.474,1.27035687]
[1772790823276,3.96112589,87.516,87.48,3.04249103]
[1772790824373,3.96112589,87.516,87.48,13.32949103]
[1772790824872,3.96112589,87.516,87.48,3.04249103]
[1772790825077,3.96112589,87.516,87.427,20.587]
[1772790825078,3.96112589,87.516,87.47,3.04249103]
[1772790826274,3.96112589,87.516,87.471,1.31772407]
[1772790826471,10.283,87.515,87.471,1.31772407]
[1772790826672,3.96112589,87.514,87.471,1.31772407]
[1772790828575,3.96112589,87.514,87.48,3.04249103]
[1772790828781,3.96112589,87.514,87.47,3.04249103]
[1772790828984,3.04249103,87.51,87.46,3.04249103]
[1772790829178,3.96112589,87.509,87.456,1.57749515]
[1772790829573,3.96112589,87.509,87.46,3.04249103]
[1772790830083,10.284,87.505,87.47,3.04249103]
[1772790830483,14.24512589,87.505,87.47,3.04249103]
[1772790830979,3.96112589,87.504,87.47,3.04249103]
[1772790831187,10.284,87.503,87.462,10.289]
[1772790832382,14.24512589,87.503,87.462,10.289]
[1772790832985,14.24512589,87.503,87.461,1.56907765]
[1772790834782,14.24512589,87.503,87.462,10.289]
[1772790835487,14.24512589,87.503,87.47,3.04249103]
[1772790836987,14.24512589,87.503,87.461,1.56907765]
[1772790837885,14.24512589,87.503,87.462,10.289]
[1772790838485,14.24512589,87.503,87.461,1.56907765]
[1772790838686,14.24612589,87.5,87.461,1.56907765]
[1772790838887,3.96112589,87.499,87.46,3.04249103]
[1772790839786,10.285,87.498,87.46,3.04249103]
[1772790839986,14.24612589,87.498,87.46,3.04249103]
[1772790840586,3.96112589,87.498,87.461,10.289]
[1772790840780,3.96112589,87.519,87.47,3.04249103]
[1772790840981,3.04249103,87.49,87.44,3.04249103]
[1772790841185,3.96112589,87.489,87.44,3.04249103]
[1772790841382,3.96112589,87.481,87.44,13.33449103]
[1772790841788,3.96112589,87.481,87.43,3.04249103]
[1772790842491,3.96112589,87.481,87.43,4.62686844]
[1772790842883,3.96112589,87.481,87.433,10.293]
[1772790843081,3.96112589,87.481,87.44,3.04088623]
[1772790844686,3.86960809,87.471,87.43,3.04088623]
[1772790845793,3.86960809,87.471,87.43,13.33388623]
[1772790845993,3.86960809,87.471,87.43,14.89480565]
[1772790846390,6.91049432,87.47,87.42,3.04088623]
[1772790846696,3.86960809,87.469,87.411,1.56091942]
[1772790847694,3.86960809,87.459,87.411,11.85591942]
[1772790848394,9.0400062,87.503,87.411,11.85591942]
[1772790848395,3.86960809,87.456,87.411,1.56091942]
[1772790848789,10.29,87.453,87.411,1.56091942]
[1772790849103,3.86960809,87.452,87.412,10.295]
[1772790851087,3.86960809,87.452,87.412,11.84274344]
[1772790851293,3.86960809,87.467,87.413,1.54774344]
[1772790851497,3.86960809,87.467,87.43,3.04088623]
[1772790851691,3.86960809,87.467,87.431,1.54774344]
[1772790851993,3.86960809,87.481,87.44,3.04088623]
[1772790852491,3.86960809,87.481,87.441,10.292]
[1772790853491,3.86960809,87.481,87.44,3.04088623]
[1772790853692,3.86960809,87.479,87.431,1.54774344]
[1772790853994,3.86960809,87.475,87.431,1.54774344]
[1772790854895,3.86960809,87.475,87.43,3.04088623]
[1772790855103,3.86960809,87.469,87.421,1.56699041]
[1772790855602,3.86960809,87.469,87.43,4.60787664]
[1772790856000,3.86960809,87.469,87.434,10.292]
[1772790856604,3.04088623,87.48,87.434,11.86380164]
[1772790856800,3.86960809,87.481,87.437,1.57180164]
[1772790857103,3.86960809,87.481,87.44,4.61268787]
[1772790857802,3.86960809,87.481,87.441,10.292]
[1772790858203,3.86960809,87.499,87.451,1.57159348]
[1772790858795,3.86960809,87.489,87.44,3.04088623]
[1772790860502,3.04088623,87.5,87.44,3.04088623]
[1772790860503,3.86960809,87.487,87.44,3.04088623]
[1772790861698,10.286,87.486,87.44,3.04088623]
[1772790861905,3.86960809,87.469,87.42,3.04088623]
[1772790862405,3.86960809,87.466,87.42,3.04088623]
[1772790862798,3.86960809,87.466,87.413,1.57458361]
[1772790863004,3.86960809,87.464,87.42,10.294]
[1772790863405,3.86960809,87.459,87.413,1.57458361]
[1772790863801,3.86960809,87.459,87.411,10.295]
[1772790864906,3.86960809,87.457,87.411,10.295]
[1772790865709,3.86960809,87.453,87.403,10.296]
[1772790865908,3.86960809,87.449,87.403,10.296]
[1772790866812,3.86960809,87.448,87.403,10.296]
[1772790868310,3.86960809,87.445,87.403,10.296]
[1772790871408,10.29,87.453,87.411,1.58300221]
[1772790872413,3.85801506,87.449,87.4,3.04088623]
[1772790872711,3.85801506,87.439,87.383,1.57525271]
[1772790872903,3.85801506,87.439,87.391,1.57525271]
[1772790873303,13.65375105,87.498,87.362,20.602]
[1772790873304,3.85801506,87.453,87.401,1.57525271]
[1772790873507,3.85801506,87.453,87.404,11.87125271]
[1772790873708,3.85801506,87.453,87.404,1.57525271]
[1772790874906,3.85801506,87.453,87.41,10.295]
[1772790875513,3.85801506,87.453,87.41,13.33588623]
[1772790876711,3.85801506,87.448,87.404,1.57525271]
[1772790877719,3.85801506,87.439,87.391,1.57520132]
[1772790878919,3.85801506,87.438,87.391,1.57520132]
[1772790879918,3.85801506,87.438,87.403,10.296]
[1772790880118,3.85801506,87.438,87.391,1.57520132]
[1772790880718,3.85801506,87.436,87.391,1.57520132]
[1772790881424,3.85801506,87.429,87.38,3.04088623]
[1772790881721,3.85801506,87.419,87.365,1.56552907]
[1772790882521,3.85801506,87.419,87.37,3.04088623]
[1772790882821,10.295,87.414,87.37,14.90607652]
[1772790883220,3.85801506,87.413,87.37,11.86519029]
[1772790883519,3.85801506,87.413,87.372,11.86519029]
[1772790884117,10.295,87.412,87.372,1.56519029]
[1772790884524,3.85801506,87.413,87.372,1.56519029]
[1772790884724,3.85801506,87.413,87.373,10.3]
[1772790884921,3.85801506,87.429,87.38,3.04088623]
[1772790885228,3.85801506,87.429,87.381,1.50478982]
[1772790885924,3.85801506,87.428,87.381,11.80378982]
[1772790886825,3.04088623,87.43,87.381,11.80378982]
[1772790886826,3.85801506,87.425,87.381,11.80378982]
[1772790887225,3.85801506,87.419,87.361,1.51324787]
[1772790887721,14.15301506,87.41,87.362,11.81424787]
[1772790887928,14.15301506,87.41,87.304,28.36611556]
[1772790887929,3.85801506,87.389,87.341,1.49732472]
[1772790888316,3.85801506,87.389,87.305,20.616]
[1772790888317,3.85801506,87.384,87.334,10.304]
[1772790888519,3.85801506,87.379,87.333,1.49732472]
[1772790888723,3.85801506,87.369,87.32,3.04088623]
[1772790888927,3.85801506,87.369,87.318,1.49732472]
[1772790889924,10.301,87.36,87.318,1.49732472]
[1772790890128,3.85801506,87.369,87.318,1.49732472]
[1772790891027,3.85801506,87.368,87.32,10.306]
[1772790891221,3.85801506,87.368,87.318,1.49732472]
[1772790891426,3.85801506,87.368,87.31,3.04088623]
[1772790891628,3.85801506,87.368,87.311,1.51250356]
[1772790892924,3.85801506,87.366,87.313,1.51638338]
[1772790893525,3.85801506,87.366,87.32,3.04088623]
[1772790894022,3.85801506,87.379,87.33,4.55783053]
[1772790895030,3.85801506,87.379,87.33,1.5169443]
[1772790895330,3.85801506,87.379,87.321,1.5169443]
[1772790895528,3.85801506,87.369,87.32,3.04088623]
[1772790895831,3.85801506,87.369,87.311,1.50623259]
[1772790896627,3.85801506,87.367,87.312,10.307]
[1772790896833,3.85801506,87.367,87.32,3.04088623]
[1772790897833,3.85801506,87.367,87.33,3.04088623]
[1772790898236,3.85801506,87.367,87.326,10.305]
[1772790900233,3.85801506,87.367,87.321,1.50623259]
[1772790900439,3.85801506,87.364,87.31,3.04088623]
[1772790900640,3.85801506,87.364,87.321,1.50128394]
[1772790900839,3.85801506,87.377,87.332,10.304]
[1772790902340,3.86089284,87.39,87.341,1.52948975]
[1772790902842,3.86089284,87.388,87.341,1.52948975]
[1772790903035,3.86089284,87.388,87.328,1.52948975]
[1772790903338,3.86089284,87.388,87.33,4.57037598]
[1772790904339,3.86089284,87.388,87.34,13.34388623]
[1772790904545,3.86089284,87.388,87.34,13.35052303]
[1772790904946,3.86089284,87.379,87.331,11.86268177]
[1772790905640,3.86089284,87.372,87.323,10.306]
[1772790905842,3.86089284,87.372,87.32,3.04752303]
[1772790906746,3.86089284,87.365,87.32,3.04752303]
[1772790907951,3.86089284,87.365,87.321,10.306]
[1772790909056,3.86089284,87.379,87.331,1.56848434]
[1772790910844,3.86089284,87.379,87.331,11.87348434]
[1772790911646,3.04752303,87.39,87.341,1.56655834]
[1772790911852,10.298,87.391,87.35,3.04752303]
[1772790912047,14.15889284,87.391,87.35,3.04752303]
[1772790912353,3.86089284,87.39,87.35,3.04752303]
[1772790912554,14.15889284,87.389,87.346,10.303]
[1772790913454,3.86089284,87.384,87.341,1.56655834]
[1772790913754,3.86089284,87.384,87.33,3.04752303]
[1772790913949,3.86089284,87.384,87.33,4.58367068]
[1772790914153,3.86089284,87.384,87.331,1.53614765]
[1772790914748,14.15989284,87.378,87.331,1.53614765]
[1772790915155,3.86089284,87.378,87.34,10.303]
[1772790917256,3.86089284,87.378,87.34,13.35052303]
[1772790918057,3.86089284,87.378,87.341,1.44296299]
[1772790918255,3.86089284,87.378,87.342,11.74596299]
[1772790918457,3.86089284,87.378,87.34,3.04752303]
[1772790918656,3.86089284,87.378,87.33,4.49048602]
[1772790919156,3.86089284,87.378,87.331,1.44296299]
[1772790919355,3.86089284,87.378,87.341,10.303]
[1772790921456,3.86089284,87.378,87.34,3.04752303]
[1772790922356,10.299,87.377,87.34,3.04752303]
[1772790923057,10.298,87.384,87.342,11.74565563]
[1772790923653,3.86089284,87.383,87.329,1.44265563]
[1772790923956,3.86089284,87.383,87.33,3.04752303]
[1772790924758,3.86089284,87.374,87.333,10.304]
[1772790925257,3.86089284,87.374,87.331,1.44239025]
[1772790926655,3.86089284,87.369,87.32,3.04752303]
[1772790927863,3.86089284,87.365,87.321,10.306]
[1772790928156,3.86089284,87.389,87.331,1.44092844]
[1772790928361,3.86089284,87.387,87.331,1.44092844]
[1772790928560,3.86089284,87.385,87.331,1.44092844]
[1772790929162,3.86089284,87.38,87.333,10.304]
[1772790930259,3.86089284,87.378,87.333,10.304]
[1772790930454,3.86089284,87.377,87.34,10.303]
[1772790930666,3.86089284,87.39,87.341,1.37319817]
[1772790931064,3.86089284,87.39,87.35,4.4207212]
[1772790931359,3.86089284,87.409,87.36,3.04752303]
[1772790931561,3.04752303,87.42,87.36,13.34852303]
[1772790931562,10.296,87.402,87.36,13.34852303]
[1772790931754,9.12715516,87.401,87.36,13.34852303]
[1772790932061,9.12715516,87.4,87.36,13.34852303]
[1772790932262,9.13972849,87.399,87.36,13.34852303]
[1772790932459,10.297,87.396,87.352,10.302]
[1772790932662,9.13847694,87.395,87.352,10.302]
[1772790932863,4.01674691,87.394,87.352,10.302]
[1772790933266,4.01674691,87.394,87.36,10.301]
[1772790934165,4.01674691,87.409,87.368,10.3]
[1772790934364,4.01674691,87.407,87.368,10.3]
[1772790934564,4.01674691,87.405,87.36,4.39047816]
[1772790934763,4.01674691,87.403,87.36,4.39047816]
[1772790935160,3.04752303,87.4,87.35,3.04752303]
[1772790935368,4.01674691,87.398,87.35,4.39047816]
[1772790935572,4.01674691,87.398,87.363,10.301]
[1772790938771,4.01674691,87.397,87.356,10.302]
[1772790939471,4.01674691,87.397,87.362,10.301]
[1772790940372,10.296,87.403,87.362,11.61823247]
[1772790940671,4.01674691,87.409,87.364,11.61823247]
[1772790941466,4.01674691,87.401,87.357,10.301]
[1772790942373,3.04752303,87.4,87.357,10.301]
[1772790942569,4.01674691,87.399,87.357,10.301]
[1772790942876,10.297,87.394,87.357,10.301]
[1772790943370,4.01674691,87.393,87.351,1.31723247]
[1772790944074,4.01674691,87.393,87.353,11.58862597]
[1772790944973,10.298,87.391,87.353,1.28662597]
[1772790945573,4.01674691,87.393,87.353,1.28662597]
[1772790947278,4.01674691,87.389,87.337,1.28919953]
[1772790947471,4.01674691,87.387,87.34,3.04752303]
[1772790947666,4.01674691,87.387,87.341,1.28919953]
[1772790948280,4.01674691,87.387,87.35,10.302]
[1772790949578,4.01674691,87.387,87.344,1.2884403]
[1772790950878,4.01674691,87.387,87.348,10.303]
[1772790952777,4.01674691,87.383,87.344,1.2884403]
[1772790953278,4.01674691,87.383,87.345,10.303]
[1772790953670,4.01674691,87.383,87.346,1.2860199]
[1772790953878,4.01674691,87.383,87.35,3.04752303]
[1772790954376,4.01674691,87.41,87.37,3.04752303]
[1772790954577,20.583,87.444,87.335,20.609]
[1772790954578,4.01674691,87.429,87.38,3.04752303]
[1772790954779,10.294,87.42,87.38,4.33741617]
[1772790954978,10.294,87.42,87.381,1.28989314]
[1772790957582,4.01674691,87.426,87.381,1.28989314]
[1772790958580,14.31074691,87.424,87.381,1.28989314]
[1772790959576,14.31074691,87.424,87.385,10.298]
[1772790960188,4.01674691,87.449,87.391,1.26604574]
[1772790960383,4.01674691,87.447,87.4,3.04752303]
[1772790960581,4.01674691,87.447,87.416,10.295]
[1772790960780,4.01674691,87.469,87.42,3.04752303]
[1772790960989,4.01674691,87.467,87.42,3.04752303]
[1772790961183,4.01674691,87.455,87.42,3.04752303]
[1772790961481,4.01674691,87.455,87.416,10.295]
[1772790961686,4.01674691,87.455,87.42,3.04752303]
[1772790962088,4.01674691,87.455,87.4,4.30803343]
[1772790962288,3.88846251,87.445,87.4,4.30803343]
[1772790962586,3.88846251,87.445,87.403,10.296]
[1772790962781,3.88846251,87.445,87.41,3.04752303]
[1772790962982,3.88846251,87.459,87.404,1.2605104]
[1772790963186,3.88846251,87.459,87.41,3.04752303]
[1772790964099,3.88846251,87.459,87.41,4.27603084]
[1772790964487,3.88846251,87.459,87.41,4.27079819]
[1772790965893,3.88846251,87.459,87.41,3.04229038]
[1772790967690,3.88846251,87.449,87.4,3.04229038]
[1772790967993,3.88846251,87.439,87.396,1.23951423]
[1772790970104,3.88846251,87.439,87.381,1.2890438]
[1772790970297,3.88846251,87.439,87.39,3.04229038]
[1772790970796,3.88846251,87.439,87.391,1.2890438]
[1772790971697,3.88846251,87.439,87.4,3.04229038]
[1772790972099,3.88846251,87.439,87.391,1.2890438]
[1772790972297,3.88846251,87.439,87.4,3.04229038]
[1772790974106,3.88846251,87.439,87.391,1.2890438]
[1772790974901,3.88846251,87.439,87.392,1.28929868]
[1772790975107,3.88846251,87.439,87.4,3.04229038]
[1772790976207,3.88846251,87.439,87.392,1.28929868]
[1772790976805,3.88846251,87.439,87.396,10.297]
[1772790978108,3.88846251,87.439,87.398,11.58808237]
[1772790978309,3.88846251,87.439,87.4,4.33337275]
[1772790978808,3.88846251,87.439,87.401,1.29108237]
[1772790981111,3.88846251,87.439,87.39,3.04229038]
[1772790981517,3.88846251,87.429,87.39,3.04229038]
[1772790981709,3.88846251,87.429,87.38,3.04229038]
[1772790982106,3.88846251,87.429,87.39,3.04229038]
[1772790982308,3.88846251,87.449,87.4,3.04229038]
[1772790982607,3.88846251,87.449,87.391,1.30847761]
[1772790982813,3.88846251,87.449,87.405,1.30847761]
[1772790983610,3.88846251,87.446,87.405,1.30847761]
[1772790983811,3.88846251,87.446,87.4,3.04229038]
[1772790984011,3.88846251,87.446,87.392,1.30847761]
[1772790984902,3.88846251,87.442,87.399,10.297]
[1772790985911,3.88846251,87.439,87.399,10.297]
[1772790987918,3.88846251,87.453,87.4,3.04229038]
[1772790988117,3.88846251,87.449,87.4,3.04229038]
[1772790988915,3.04229038,87.45,87.393,10.297]
[1772790988916,3.88846251,87.439,87.393,10.297]
[1772790989817,3.88846251,87.436,87.393,10.297]
[1772790990415,3.88846251,87.436,87.399,10.297]
[1772790990617,3.88846251,87.436,87.4,3.04229038]
[1772790991314,3.88846251,87.436,87.401,10.296]
[1772790993122,3.88846251,87.436,87.4,3.04229038]
[1772790993323,3.88846251,87.436,87.394,1.36125769]
[1772790993817,3.73259859,87.434,87.39,3.04229038]
[1772790994223,3.73259859,87.434,87.384,10.298]
[1772790994921,3.73259859,87.428,87.384,10.298]
[1772790997320,10.48536309,87.468,87.345,20.606]
[1772790997321,10.292,87.439,87.391,1.38627608]
[1772790997522,3.73259859,87.438,87.4,3.04229038]
[1772790997720,3.73259859,87.438,87.391,1.38627608]
[1772790998921,3.73259859,87.43,87.391,1.38627608]
[1772790999726,3.73259859,87.43,87.392,10.297]
[1772791000528,3.73259859,87.456,87.41,4.43124966]
[1772791000727,3.73259859,87.454,87.41,4.43124966]
[1772791001329,3.73259859,87.452,87.41,4.43124966]
[1772791001830,3.73259859,87.451,87.41,4.43124966]
[1772791002127,3.73259859,87.451,87.41,1.38895928]
[1772791002328,3.73259859,87.451,87.4,3.04229038]
[1772791002529,3.73259859,87.449,87.4,3.04229038]
[1772791002730,3.73259859,87.444,87.4,3.04229038]
[1772791003128,3.73259859,87.444,87.401,10.296]
[1772791003329,3.73259859,87.444,87.401,11.68197675]
[1772791004334,3.73259859,87.457,87.411,1.39885669]
[1772791004629,13.98048413,87.476,87.365,20.602]
[1772791004630,3.73259859,87.47,87.421,1.39885669]
[1772791004830,12.88350994,87.469,87.421,1.39885669]
[1772791005029,9.15091135,87.468,87.421,1.39885669]
[1772791005230,9.15091135,87.467,87.421,1.39885669]
[1772791005429,10.48536309,87.485,87.431,1.39885669]
[1772791005430,3.73259859,87.485,87.431,1.39885669]
[1772791005632,3.73259859,87.483,87.44,3.04229038]
[1772791005829,3.04229038,87.48,87.431,1.39885669]
[1772791006028,3.73259859,87.479,87.431,1.39885669]
[1772791006229,10.287,87.477,87.431,1.39885669]
[1772791006427,3.73259859,87.475,87.426,10.293]
[1772791006626,13.98048413,87.505,87.42,3.04229038]
[1772791006627,3.04229038,87.47,87.42,3.04229038]
[1772791006824,3.73259859,87.468,87.42,3.04229038]
[1772791007130,3.73259859,87.464,87.42,4.44585834]
[1772791009730,3.73259859,87.464,87.421,1.38627992]
[1772791010232,3.73259859,87.46,87.408,1.3814792]
[1772791010431,3.73259859,87.449,87.401,1.3814792]
[1772791011032,3.73259859,87.449,87.403,1.3814792]
[1772791011232,3.73259859,87.462,87.411,1.3814792]
[1772791011432,3.73259859,87.462,87.421,1.3814792]
[1772791011930,20.97072619,87.515,87.348,160.27]
[1772791011931,3.73259859,87.479,87.44,3.04229038]
[1772791012232,3.73259859,87.479,87.431,1.39732707]
[1772791012233,3.73259859,87.499,87.451,1.39732707]
[1772791012533,3.73259859,87.495,87.451,1.39732707]
[1772791013929,3.04229038,87.5,87.451,1.39732707]
[1772791013930,14.01859859,87.493,87.451,1.39732707]
[1772791014334,3.73259859,87.492,87.451,1.39732707]
[1772791017835,3.73259859,87.489,87.451,1.39732707]
[1772791018437,3.73259859,87.489,87.443,10.291]
[1772791018734,10.286,87.486,87.443,10.291]
[1772791018939,3.73259859,87.485,87.443,10.291]
[1772791019940,3.73259859,87.483,87.443,10.291]
[1772791020236,3.73259859,87.483,87.441,1.38193211]
[1772791020431,3.73259859,87.483,87.45,3.04229038]
[1772791020636,3.73259859,87.495,87.451,1.38193211]
[1772791021235,14.01759859,87.494,87.451,11.67193211]
[1772791022039,3.94051778,87.491,87.451,1.38193211]
[1772791022241,3.94051778,87.489,87.444,10.291]
[1772791022434,3.94051778,87.489,87.441,1.39362385]
[1772791022836,3.94051778,87.489,87.453,1.39362385]
[1772791023540,14.09869244,87.543,87.408,11.59274505]
[1772791023541,3.94051778,87.502,87.461,1.39362385]
[1772791023742,3.94051778,87.519,87.47,3.04229038]
[1772791023936,3.94051778,87.519,87.479,10.287]
[1772791024637,3.94051778,87.519,87.48,3.04229038]
[1772791024844,3.94051778,87.519,87.481,10.287]
[1772791025846,10.283,87.518,87.474,10.288]
[1772791026045,10.283,87.518,87.471,1.39362385]
[1772791026046,3.04229038,87.53,87.475,1.41844452]
[1772791026247,3.94051778,87.533,87.491,1.41844452]
[1772791026446,3.94051778,87.549,87.491,1.41844452]
[1772791026647,3.94051778,87.549,87.51,3.03668248]
[1772791026841,3.94051778,87.549,87.505,1.41844452]
[1772791027644,3.94051778,87.549,87.51,3.03668248]
[1772791027844,3.94051778,87.549,87.505,1.41844452]
[1772791028041,3.94051778,87.549,87.506,10.284]
[1772791028642,3.94051778,87.563,87.513,1.40424159]
[1772791028943,3.94051778,87.56,87.513,1.40424159]
[1772791029147,3.94051778,87.559,87.513,1.40424159]
[1772791029846,3.94051778,87.557,87.513,1.40424159]
[1772791030450,3.03668248,87.55,87.5,4.22053569]
[1772791030746,3.94051778,87.549,87.5,4.22053569]
[1772791031848,3.94051778,87.545,87.501,10.285]
[1772791033140,3.87182898,87.539,87.494,10.285]
[1772791033341,10.28,87.537,87.494,10.285]
[1772791033649,3.87182898,87.536,87.494,10.285]
[1772791033850,3.87182898,87.536,87.491,1.34956023]
[1772791034044,10.281,87.535,87.491,1.34956023]
[1772791034349,3.87182898,87.536,87.492,1.43784936]
[1772791035050,3.87182898,87.536,87.504,10.284]
[1772791035251,10.57401933,87.598,87.461,20.579]
[1772791035252,3.87182898,87.56,87.501,1.43784936]
[1772791035453,3.87182898,87.559,87.511,1.43784936]
[1772791035949,3.87182898,87.558,87.511,1.43784936]
[1772791036842,3.87182898,87.558,87.518,10.282]
[1772791037149,3.87182898,87.558,87.52,3.03668248]
[1772791037553,3.87182898,87.558,87.517,10.283]
[1772791037554,3.87182898,87.572,87.54,3.03668248]
[1772791037746,3.87182898,87.589,87.54,3.03668248]
[1772791038051,3.87182898,87.587,87.531,1.44108013]
[1772791038252,293.0,87.63,87.531,1.44108013]
[1772791038253,3.87182898,87.579,87.531,1.44108013]
[1772791038748,3.87182898,87.589,87.536,1.43150054]
[1772791039552,3.87182898,87.589,87.53,3.03668248]
[1772791039753,3.03668248,87.57,87.522,1.43150054]
[1772791040054,3.87182898,87.569,87.522,1.43150054]
[1772791040749,3.87182898,87.559,87.51,3.03668248]
[1772791041154,10.278,87.557,87.508,1.22032146]
[1772791041357,3.87182898,87.549,87.5,3.03668248]
[1772791042052,3.87182898,87.539,87.492,1.22032146]
[1772791042957,10.281,87.53,87.492,1.22032146]
[1772791043154,14.15282898,87.53,87.48,4.33776613]
[1772791043354,14.15282898,87.53,87.481,1.30108365]
[1772791043555,3.87182898,87.53,87.49,3.03668248]
[1772791043857,3.87182898,87.53,87.49,4.33776613]
[1772791044954,3.87182898,87.53,87.436,20.585]
[1772791044955,3.87182898,87.529,87.47,3.03668248]
[1772791045152,3.87182898,87.529,87.471,1.38142936]
[1772791045356,3.87182898,87.529,87.48,3.03668248]
[1772791045758,3.87182898,87.527,87.48,3.03668248]
[1772791046656,3.87182898,87.527,87.481,11.70972188]
[1772791046960,3.87182898,87.527,87.49,3.03668248]
[1772791047158,3.87182898,87.559,87.513,10.283]
[1772791047661,9.05455418,87.599,87.432,160.114]
[1772791047662,3.87182898,87.579,87.53,3.03668248]
[1772791048161,3.87182898,87.579,87.531,10.281]
[1772791048360,3.87182898,87.579,87.53,3.03668248]
[1772791048564,3.87182898,87.579,87.521,1.42272188]
[1772791049466,14.14882898,87.568,87.522,10.282]
[1772791049660,3.87182898,87.567,87.522,10.282]
[1772791050458,3.87182898,87.565,87.521,1.42272188]
[1772791050662,3.87182898,87.559,87.512,10.283]
[1772791051059,3.87182898,87.548,87.504,10.284]
[1772791051560,3.87182898,87.548,87.51,3.03668248]
[1772791052556,3.03668248,87.57,87.51,4.47723049]
[1772791052768,3.83962663,87.569,87.52,4.47723049]
[1772791053964,10.277,87.562,87.522,10.282]
[1772791054368,3.83962663,87.557,87.515,10.283]
[1772791055755,3.83962663,87.557,87.52,3.03668248]
[1772791056366,3.83962663,87.553,87.51,3.03668248]
[1772791056966,3.83962663,87.553,87.52,3.03668248]
[1772791057467,3.83962663,87.553,87.5,3.03668248]
[1772791058162,3.83962663,87.539,87.49,3.03668248]
[1772791059066,3.83962663,87.528,87.482,10.287]
[1772791060264,14.12262663,87.518,87.472,10.288]
[1772791062268,14.12262663,87.518,87.472,11.97492123]
[1772791062468,3.83962663,87.518,87.472,1.68692123]
[1772791062961,3.83962663,87.517,87.472,1.68692123]